bitfinex/quotes_BTCUSD_20250326
["timestamp","ask_amount","ask_price","bid_price","bid_amount"]
[1743005488730,4e-08,86985.0,86984.0,0.91087287]
[1743005488909,4e-08,86985.0,86984.0,1.06400055]
[1743005489167,0.0001694,86995.0,86988.0,0.25595185]
[1743005489345,0.01800502,86992.0,86988.0,0.38983185]
[1743005489766,0.01800502,86992.0,86988.0,0.50408949]
[1743005489973,0.01800502,86992.0,86988.0,0.61834713]
[1743005490556,0.01800502,86992.0,86988.0,1.03374087]
[1743005491680,0.0001694,86995.0,86994.0,0.321995]
[1743005491882,0.0001694,86995.0,86994.0,0.45079349]
[1743005493259,4e-07,86995.0,86994.0,0.45679349]
[1743005493480,4e-07,86995.0,86994.0,0.62715669]
[1743005494129,0.0001695,87009.0,87008.0,0.241356]
[1743005494282,0.00058034,87009.0,87008.0,1.26837059]
[1743005494485,0.00058034,87009.0,87008.0,1.40221059]
[1743005495111,0.00058034,87009.0,87008.0,1.40141059]
[1743005495907,0.00058034,87009.0,87008.0,1.41341059]
[1743005496111,0.00058034,87009.0,87008.0,1.43614105]
[1743005496586,0.00058034,87009.0,87008.0,1.44214105]
[1743005496789,0.00049304,87009.0,87008.0,1.41941059]
[1743005497948,0.00049304,87009.0,87008.0,1.28557059]
[1743005498275,0.01849619,87009.0,87008.0,1.03047374]
[1743005498429,0.06749619,87009.0,87008.0,1.16427374]
[1743005498822,0.06749619,87009.0,87008.0,1.39413674]
[1743005499023,0.06749619,87009.0,87008.0,1.40562974]
[1743005499219,0.06749619,87009.0,87008.0,1.38762974]
[1743005499625,0.06749619,87009.0,87008.0,1.39262974]
[1743005499941,0.01849619,87009.0,87008.0,1.39862974]
[1743005500767,0.01849619,87009.0,87008.0,1.39362974]
[1743005501280,0.01849619,87009.0,87008.0,1.41417059]
[1743005502127,0.01849619,87009.0,87008.0,1.40817059]
[1743005502743,0.00049304,87009.0,87008.0,1.40817059]
[1743005503384,0.00049304,87009.0,87008.0,1.41417059]
[1743005503795,0.00049304,87009.0,87008.0,1.52842823]
[1743005504738,0.01223622,87009.0,87008.0,1.52842823]
[1743005507892,0.00049304,87009.0,87008.0,1.52842823]
[1743005508110,0.00049304,87009.0,87008.0,1.41417059]
[1743005508338,0.00049304,87009.0,87008.0,1.40267759]
[1743005508574,0.00049304,87009.0,87008.0,1.41417059]
[1743005516772,0.00049304,87009.0,87008.0,1.41413059]
[1743005517179,0.00049304,87009.0,87008.0,1.40813059]
[1743005517355,0.00049304,87009.0,87008.0,1.41413059]
[1743005517764,0.00049304,87009.0,87008.0,1.40813059]
[1743005518078,0.00049304,87009.0,87008.0,1.41413059]
[1743005518745,0.00049304,87009.0,87008.0,1.40213059]
[1743005518942,0.00049304,87009.0,87008.0,1.41413059]
[1743005526199,0.00049304,87009.0,87008.0,1.41446919]
[1743005526403,0.00049304,87009.0,87008.0,1.17311319]
[1743005526579,0.00049304,87009.0,87008.0,1.40297619]
[1743005527314,0.00049304,87009.0,87008.0,1.41446919]
[1743005527517,0.23035404,87009.0,87008.0,1.02481234]
[1743005527722,0.75064154,87009.0,87008.0,0.6094186]
[1743005528378,0.66704704,87009.0,87008.0,0.6034186]
[1743005528789,0.66704704,87009.0,87008.0,0.6094186]
[1743005529790,0.66704704,87009.0,87008.0,0.6034186]
[1743005529993,0.66704704,87009.0,87008.0,0.5974186]
[1743005530197,0.66704704,87009.0,87008.0,0.6024186]
[1743005530533,0.66704704,87009.0,87008.0,0.6084186]
[1743005531188,0.66704704,87009.0,87008.0,0.6034186]
[1743005531560,0.66704704,87009.0,87008.0,0.6084186]
[1743005533534,0.665009,86989.0,86988.0,0.0003388]
[1743005533737,0.241472,86966.0,86965.0,0.10344915]
[1743005533938,0.541472,86966.0,86965.0,0.10344915]
[1743005534539,0.541481,86963.0,86962.0,0.0003388]
[1743005535256,0.541481,86963.0,86962.0,0.00040967]
[1743005536202,0.55949288,86963.0,86962.0,0.00040967]
[1743005537216,0.57172475,86963.0,86962.0,0.00340967]
[1743005537588,0.57272475,86963.0,86962.0,0.00840967]
[1743005537828,0.57172475,86963.0,86962.0,0.00540967]
[1743005538077,0.57272475,86963.0,86962.0,0.00840967]
[1743005538258,0.57372475,86963.0,86962.0,0.01340967]
[1743005540385,0.60136038,86963.0,86962.0,0.01340967]
[1743005540555,0.57372475,86963.0,86962.0,0.01340967]
[1743005541138,0.57272475,86963.0,86962.0,0.01040967]
[1743005541458,0.57072475,86963.0,86962.0,0.00040967]
[1743005541661,0.57072475,86963.0,86962.0,0.00340967]
[1743005541863,0.57072475,86963.0,86962.0,0.00640967]
[1743005542612,0.31123187,86963.0,86962.0,0.00640967]
[1743005542789,0.31123187,86963.0,86962.0,0.23339467]
[1743005543053,0.31123187,86963.0,86962.0,0.00340967]
[1743005543224,0.31123187,86963.0,86962.0,0.23039467]
[1743005543516,0.31123187,86963.0,86962.0,0.00340967]
[1743005543934,0.31123187,86963.0,86962.0,0.23039467]
[1743005544158,0.31123187,86963.0,86962.0,0.00340967]
[1743005544342,0.31123187,86963.0,86962.0,0.24789367]
[1743005544504,0.31123187,86963.0,86962.0,0.24489367]
[1743005544707,0.31123187,86963.0,86962.0,0.00640967]
[1743005544904,0.31123187,86963.0,86962.0,0.24789367]
[1743005545607,0.32924428,86963.0,86962.0,0.00640967]
[1743005546009,0.32924428,86963.0,86962.0,0.26243452]
[1743005546210,0.31801241,86963.0,86962.0,0.26243452]
[1743005547081,0.31801241,86963.0,86962.0,0.25943452]
[1743005547284,0.3,86971.0,86970.0,0.229964]
[1743005547485,0.529961,86971.0,86970.0,0.13376]
[1743005547647,0.529961,86971.0,86962.0,0.00340967]
[1743005547648,0.24799394,86963.0,86962.0,0.00340967]
[1743005547848,0.25949294,86963.0,86962.0,0.13716967]
[1743005548054,0.25949294,86963.0,86962.0,0.13416967]
[1743005548260,0.25949294,86963.0,86962.0,0.00340967]
[1743005548505,0.01801194,86963.0,86962.0,0.37565367]
[1743005548641,0.01801194,86963.0,86962.0,0.39019452]
[1743005549318,0.01801194,86963.0,86962.0,0.37869552]
[1743005549465,0.25949294,86963.0,86962.0,0.15171052]
[1743005549645,0.25949294,86963.0,86962.0,0.01795052]
[1743005549846,0.25949294,86963.0,86962.0,0.14871052]
[1743005550041,0.25949294,86963.0,86962.0,0.13416967]
[1743005550245,0.25949294,86963.0,86962.0,0.13616967]
[1743005550651,0.63839294,86963.0,86962.0,0.00440967]
[1743005550855,0.75265058,86963.0,86962.0,0.00440967]
[1743005551296,0.63839294,86963.0,86962.0,0.00440967]
[1743005552149,0.31801194,86963.0,86962.0,0.26043452]
[1743005552456,0.01175129,86966.0,86965.0,0.241475]
[1743005552657,0.01175129,86966.0,86965.0,0.25601585]
[1743005552860,0.3,86971.0,86968.0,0.229969]
[1743005552988,0.3,86971.0,86966.0,0.01454085]
[1743005552989,0.011498,86970.0,86966.0,0.01454085]
[1743005553193,0.54147,86967.0,86966.0,0.01454085]
[1743005553534,0.54147,86967.0,86962.0,0.00240967]
[1743005553535,0.3,86967.0,86965.0,0.24451785]
[1743005553945,0.3,86967.0,86963.0,0.01454085]
[1743005554134,0.54147,86967.0,86966.0,0.003]
[1743005554309,0.62377,86967.0,86966.0,0.003]
[1743005554516,0.62377,86967.0,86966.0,0.006]
[1743005554743,0.62377,86967.0,86966.0,0.003]
[1743005555345,0.64178357,86967.0,86966.0,0.003]
[1743005555547,0.541481,86963.0,86962.0,0.00040967]
[1743005555746,0.541511,86952.0,86951.0,0.59728]
[1743005556096,0.619311,86952.0,86951.0,0.59728]
[1743005556298,0.619311,86952.0,86946.0,0.0003384]
[1743005556299,0.541526,86947.0,86946.0,0.0003384]
[1743005556502,0.870777,86947.0,86946.0,0.00043772]
[1743005556716,0.94341263,86947.0,86946.0,0.00043772]
[1743005556828,0.96142934,86947.0,86946.0,0.00043772]
[1743005557755,0.96142934,86947.0,86946.0,0.00243772]
[1743005558192,0.96142934,86947.0,86946.0,0.00443772]
[1743005558390,0.241581,86927.0,86926.0,0.13376]
[1743005558587,0.241581,86927.0,86925.0,0.59728]
[1743005558788,0.541584,86926.0,86925.0,0.59728]
[1743005559873,0.55289496,86926.0,86925.0,0.59728]
[1743005560698,0.55289496,86926.0,86925.0,0.60328]
[1743005561902,0.55289496,86926.0,86925.0,0.60828]
[1743005562018,0.56163115,86926.0,86925.0,0.60828]
[1743005562665,0.56163115,86926.0,86925.0,0.60228]
[1743005563352,0.56163115,86926.0,86925.0,0.005]
[1743005563593,0.541597,86921.0,86920.0,0.0003388]
[1743005563846,0.541651,86902.0,86901.0,0.5978186]
[1743005564052,0.541651,86902.0,86901.0,0.59822994]
[1743005564620,0.530144,86902.0,86901.0,0.59822994]
[1743005564820,0.53863903,86902.0,86901.0,0.59822994]
[1743005565263,0.30849503,86902.0,86901.0,0.60322994]
[1743005565603,0.32651929,86902.0,86901.0,0.60322994]
[1743005566435,0.32651929,86902.0,86901.0,0.60922994]
[1743005567939,0.44317132,86902.0,86901.0,0.60922994]
[1743005568380,0.32651929,86902.0,86901.0,0.60922994]
[1743005568858,0.33802629,86902.0,86901.0,0.60322994]
[1743005569159,0.33802629,86902.0,86901.0,0.60822994]
[1743005569794,0.33802629,86902.0,86901.0,0.60322994]
[1743005570154,0.33802629,86902.0,86901.0,0.60822994]
[1743005570356,0.56817029,86902.0,86901.0,0.60822994]
[1743005570980,0.55666329,86902.0,86901.0,0.60822994]
[1743005571420,0.55666329,86902.0,86901.0,0.60322994]
[1743005571625,0.32651929,86902.0,86901.0,0.60322994]
[1743005571823,0.55666329,86902.0,86901.0,0.59822994]
[1743005572261,0.55666329,86902.0,86901.0,0.60322994]
[1743005572440,0.55666329,86902.0,86901.0,0.60822994]
[1743005572644,0.53863903,86902.0,86901.0,0.60822994]
[1743005573021,0.53863903,86902.0,86901.0,0.83837594]
[1743005573022,0.30849503,86902.0,86901.0,0.83837594]
[1743005573223,0.30849503,86902.0,86901.0,0.60822994]
[1743005573569,0.30849503,86902.0,86901.0,0.86442379]
[1743005575073,0.57677833,86911.0,86910.0,0.230123]
[1743005575277,0.3,86910.0,86909.0,0.230125]
[1743005575479,0.3,86912.0,86909.0,0.230125]
[1743005575778,0.3,86912.0,86908.0,0.011506]
[1743005575779,0.02683296,86912.0,86911.0,0.23012]
[1743005576178,0.02683296,86912.0,86909.0,0.230125]
[1743005576383,0.02683296,86912.0,86908.0,0.241634]
[1743005576835,0.230122,86911.0,86908.0,0.230128]
[1743005577334,0.25695296,86912.0,86909.0,0.233123]
[1743005577685,0.25695296,86912.0,86909.0,0.230123]
[1743005578309,0.02683296,86912.0,86911.0,0.23012]
[1743005578520,0.02683296,86912.0,86910.0,0.230123]
[1743005578923,0.25695296,86912.0,86909.0,0.241631]
[1743005579127,0.02683296,86912.0,86910.0,0.230121]
[1743005579674,0.25695096,86912.0,86909.0,0.230125]
[1743005579914,0.23012,86911.0,86910.0,0.003]
[1743005580094,0.25695096,86912.0,86910.0,0.003]
[1743005580508,0.02683296,86912.0,86910.0,0.003]
[1743005580771,0.23012,86911.0,86910.0,0.003]
[1743005580956,0.25694996,86912.0,86910.0,0.003]
[1743005581525,0.23012,86911.0,86910.0,0.003]
[1743005581721,0.241626,86911.0,86910.0,0.006]
[1743005582104,0.241626,86911.0,86910.0,0.13676]
[1743005582997,0.541626,86911.0,86910.0,0.13676]
[1743005583202,0.541626,86911.0,86910.0,0.13976]
[1743005583423,0.541626,86911.0,86910.0,0.13676]
[1743005584098,0.541626,86911.0,86910.0,0.13376]
[1743005584430,0.230134,86906.0,86903.0,0.230139]
[1743005584557,0.230134,86906.0,86904.0,0.13376]
[1743005584979,0.24164,86906.0,86904.0,0.13376]
[1743005585180,0.230136,86905.0,86904.0,0.13376]
[1743005585388,0.230136,86905.0,86901.0,0.60973694]
[1743005585389,0.230136,86905.0,86902.0,0.230139]
[1743005585591,0.241645,86904.0,86903.0,0.13376]
[1743005585787,0.230139,86904.0,86903.0,0.13376]
[1743005586038,0.241651,86902.0,86901.0,0.59822994]
[1743005586251,0.241651,86902.0,86901.0,0.73198994]
[1743005587616,0.241651,86902.0,86901.0,0.73698994]
[1743005587838,0.241651,86902.0,86901.0,0.14450994]
[1743005591123,0.311506,86905.0,86901.0,0.14450994]
[1743005591318,0.3,86905.0,86901.0,0.14450994]
[1743005591515,0.530136,86905.0,86902.0,0.230143]
[1743005591820,0.3,86903.0,86902.0,0.241651]
[1743005592054,0.3,86903.0,86902.0,0.25619185]
[1743005592278,0.00880981,86912.0,86908.0,0.011506]
[1743005592485,0.3,86912.0,86911.0,0.241626]
[1743005593203,0.3,86912.0,86911.0,0.23012]
[1743005593414,0.3,86912.0,86908.0,0.011506]
[1743005593415,0.011505,86913.0,86908.0,0.230126]
[1743005593626,0.230117,86912.0,86909.0,0.230123]
[1743005593841,0.3,86912.0,86910.0,0.230121]
[1743005593965,0.3,86912.0,86911.0,0.003]
[1743005594190,0.30857641,86912.0,86911.0,0.244626]
[1743005594586,0.30857641,86912.0,86911.0,0.247626]
[1743005594828,0.00857641,86912.0,86911.0,0.247626]
[1743005595034,0.54813298,86915.0,86911.0,0.247626]
[1743005595233,0.01802298,86915.0,86914.0,0.230112]
[1743005595432,0.31802298,86915.0,86913.0,0.230113]
[1743005595689,0.54813198,86915.0,86912.0,0.230116]
[1743005595914,0.31802298,86915.0,86913.0,0.230115]
[1743005596315,0.31802298,86915.0,86914.0,0.002]
[1743005596522,0.31802298,86915.0,86914.0,0.232112]
[1743005596722,0.55963698,86915.0,86914.0,0.002]
[1743005596925,0.230117,86913.0,86910.0,0.24466285]
[1743005597385,0.530119,86912.0,86908.0,0.01454085]
[1743005597579,0.3,86910.0,86908.0,0.24466685]
[1743005597898,0.230131,86907.0,86902.0,0.230143]
[1743005598116,0.230131,86907.0,86903.0,0.363859]
[1743005598323,0.230134,86906.0,86903.0,0.363859]
[1743005598713,0.230136,86905.0,86903.0,0.363859]
[1743005599020,0.230144,86902.0,86901.0,0.01529079]
[1743005599261,0.530144,86902.0,86901.0,0.00074994]
[1743005599464,0.62480777,86902.0,86901.0,0.13446994]
[1743005599668,0.62480777,86902.0,86901.0,0.00074994]
[1743005599894,0.541651,86902.0,86901.0,0.00074994]
[1743005601175,0.541651,86902.0,86901.0,0.01074994]
[1743005602313,0.541651,86902.0,86901.0,0.00574994]
[1743005602526,0.541651,86902.0,86901.0,0.00074994]
[1743005602723,0.541651,86902.0,86901.0,0.00574994]
[1743005603828,0.541651,86902.0,86901.0,0.00974994]
[1743005605811,0.55967645,86902.0,86901.0,0.00974994]
[1743005609857,0.54816945,86902.0,86901.0,0.00974994]
[1743005610073,0.55967645,86902.0,86901.0,0.00974994]
[1743005610844,0.55967645,86902.0,86901.0,0.00474994]
[1743005611024,0.31802545,86902.0,86901.0,0.23089594]
[1743005611226,0.31802545,86902.0,86901.0,0.25694379]
[1743005611480,0.54816945,86902.0,86901.0,0.00474994]
[1743005611686,0.54816945,86902.0,86901.0,0.00074994]
[1743005611837,0.55967645,86902.0,86901.0,0.00074994]
[1743005612040,0.31802545,86902.0,86901.0,0.13846994]
[1743005612483,0.31802545,86902.0,86901.0,0.13446994]
[1743005612686,0.530144,86902.0,86901.0,0.14346994]
[1743005613217,0.541651,86902.0,86901.0,0.13846994]
[1743005613681,0.620851,86902.0,86901.0,0.00974994]
[1743005614830,0.620851,86902.0,86901.0,0.00474994]
[1743005615036,0.620851,86902.0,86901.0,0.00074994]
[1743005615370,0.620851,86902.0,86901.0,0.00474994]
[1743005615775,0.63887751,86902.0,86901.0,0.00474994]
[1743005615972,0.63887751,86902.0,86901.0,0.00874994]
[1743005616491,0.55967751,86902.0,86901.0,0.00474994]
[1743005616689,0.54817051,86902.0,86901.0,0.00474994]
[1743005616916,0.55967751,86902.0,86901.0,0.00874994]
[1743005618556,0.67393515,86902.0,86901.0,0.00874994]
[1743005620323,0.80333515,86902.0,86901.0,0.00874994]
[1743005621208,0.82659711,86902.0,86901.0,0.00074994]
[1743005621528,0.82659711,86902.0,86901.0,0.00174994]
[1743005621806,0.82659711,86902.0,86901.0,0.00274994]
[1743005622142,0.71233947,86902.0,86901.0,0.00274994]
[1743005622436,0.64087751,86902.0,86901.0,0.00374994]
[1743005622667,0.541651,86902.0,86901.0,0.00374994]
[1743005623700,0.541651,86902.0,86901.0,0.00274994]
[1743005624066,0.3,86902.0,86901.0,0.00274994]
[1743005624276,0.541651,86902.0,86901.0,0.00274994]
[1743005624950,0.541651,86902.0,86901.0,0.00074994]
[1743005625424,0.541651,86902.0,86901.0,0.00274994]
[1743005625854,0.541651,86902.0,86901.0,0.13642994]
[1743005627972,0.65590864,86902.0,86901.0,0.13642994]
[1743005628508,0.541651,86902.0,86901.0,0.13642994]
[1743005630295,0.3,86902.0,86901.0,0.13642994]
[1743005630465,0.541651,86902.0,86901.0,0.13642994]
[1743005632686,0.620751,86902.0,86901.0,0.00274994]
[1743005632891,0.670051,86902.0,86901.0,0.00274994]
[1743005633094,0.78430864,86902.0,86901.0,0.00274994]
[1743005633504,0.530149,86900.0,86899.0,0.0003388]
[1743005633735,2.947586,86900.0,86899.0,0.00043809]
[1743005633939,2.54949063,86900.0,86899.0,0.00043809]
[1743005637219,0.541678,86892.0,86891.0,0.002]
[1743005637467,4.099699,86892.0,86891.0,0.00212333]
[1743005637843,3.897032,86892.0,86891.0,0.00212333]
[1743005638048,4.02931987,86892.0,86891.0,0.00212333]
[1743005638620,4.11151987,86892.0,86891.0,0.00412333]
[1743005638828,0.541684,86890.0,86889.0,1e-08]
[1743005639033,0.56931963,86890.0,86889.0,1e-08]
[1743005642160,0.59246831,86890.0,86889.0,1e-08]
[1743005643561,0.541708,86881.0,86880.0,0.0003388]
[1743005643762,3.155155,86881.0,86880.0,0.00046223]
[1743005644381,2.13204383,86881.0,86880.0,0.00046223]
[1743005644591,0.55034983,86881.0,86880.0,0.00046223]
[1743005645026,0.55034983,86881.0,86880.0,0.00246223]
[1743005645231,0.32013202,86881.0,86880.0,0.00246223]
[1743005645489,0.56184002,86881.0,86880.0,0.00246223]
[1743005645690,0.57987045,86881.0,86880.0,0.00246223]
[1743005646204,0.56836145,86881.0,86880.0,0.00546223]
[1743005646363,0.57987045,86881.0,86880.0,0.00546223]
[1743005647678,0.57987045,86881.0,86880.0,0.00526223]
[1743005649651,0.57987045,86881.0,86880.0,0.13894223]
[1743005651878,0.56184002,86881.0,86880.0,0.13894223]
[1743005652783,0.32013202,86881.0,86880.0,0.13894223]
[1743005652985,0.55033102,86881.0,86880.0,0.13894223]
[1743005653118,0.32013202,86881.0,86880.0,0.13894223]
[1743005654251,0.32013202,86881.0,86880.0,0.36914423]
[1743005654460,0.32013202,86881.0,86880.0,0.13894223]
[1743005654822,0.56836121,86881.0,86880.0,0.13894223]
[1743005655468,0.57987021,86881.0,86880.0,0.13894223]
[1743005656049,0.57987021,86881.0,86880.0,0.13890223]
[1743005657811,0.69412785,86881.0,86880.0,0.13890223]
[1743005658040,0.57987021,86881.0,86880.0,0.13890223]
[1743005662287,0.57987021,86881.0,86880.0,0.00526223]
[1743005662483,0.60864002,86881.0,86880.0,0.00526223]
[1743005664781,0.56184002,86881.0,86880.0,0.00526223]
[1743005665073,0.58465767,86881.0,86880.0,0.00526223]
[1743005665595,0.58499667,86881.0,86880.0,0.00526223]
[1743005666918,0.60302753,86881.0,86880.0,0.00526223]
[1743005667516,0.58020988,86881.0,86880.0,0.00526223]
[1743005672891,0.56217902,86881.0,86880.0,0.00526223]
[1743005675780,0.58020962,86881.0,86880.0,0.00526223]
[1743005676763,0.56870062,86881.0,86880.0,0.00526223]
[1743005677096,0.58020962,86881.0,86880.0,0.00526223]
[1743005678745,3.65879017,86870.0,86869.0,0.30188285]
[1743005679569,3.67682101,86870.0,86869.0,0.30188285]
[1743005680114,3.67682101,86870.0,86869.0,0.30688285]
[1743005680392,3.67682101,86870.0,86869.0,0.31188285]
[1743005681892,3.65879017,86870.0,86869.0,0.31188285]
[1743005686159,3.67682096,86870.0,86869.0,0.31188285]
[1743005686435,3.67682096,86870.0,86869.0,0.42614049]
[1743005686658,3.67682096,86870.0,86869.0,0.6519032]
[1743005686859,3.67682096,86870.0,86869.0,0.67492015]
[1743005687482,3.67682096,86870.0,86869.0,0.66492015]
[1743005687688,3.67682096,86870.0,86869.0,1.08531389]
[1743005687910,3.67682096,86870.0,86869.0,1.20357153]
[1743005688103,3.67682096,86870.0,86869.0,0.78417779]
[1743005688312,3.67682096,86870.0,86869.0,0.66492015]
[1743005688517,3.67682096,86870.0,86869.0,0.67092015]
[1743005688721,3.66323006,86870.0,86869.0,0.70084717]
[1743005689757,2.45137241,86870.0,86869.0,0.70084717]
[1743005689966,0.59677381,86870.0,86869.0,1.11517779]
[1743005690183,8.1e-07,86870.0,86869.0,1.11517779]
[1743005690393,8.1e-07,86870.0,86869.0,1.12117779]
[1743005690597,8.1e-07,86870.0,86869.0,1.10917779]
[1743005690801,8.1e-07,86870.0,86869.0,1.11517779]
[1743005691005,8.1e-07,86870.0,86869.0,1.12117779]
[1743005691203,8.1e-07,86870.0,86869.0,1.11517779]
[1743005691406,8.1e-07,86870.0,86869.0,1.10934729]
[1743005691584,8.1e-07,86870.0,86869.0,1.11534729]
[1743005691783,8.1e-07,86870.0,86869.0,1.12134729]
[1743005693341,0.00033981,86870.0,86869.0,1.12134729]
[1743005694041,0.00033981,86870.0,86869.0,1.12130729]
[1743005695032,8.1e-07,86870.0,86869.0,1.12130729]
[1743005695241,1e-06,86881.0,86880.0,0.698412]
[1743005695443,9.076e-05,86881.0,86880.0,1.03057169]
[1743005696743,9.076e-05,86881.0,86880.0,1.03657169]
[1743005697155,9.076e-05,86881.0,86880.0,1.03057169]
[1743005697330,9.076e-05,86881.0,86880.0,1.03657169]
[1743005697755,9.076e-05,86881.0,86880.0,1.04257169]
[1743005698794,7.6e-07,86881.0,86880.0,1.04257169]
[1743005700337,7.6e-07,86881.0,86880.0,1.07827124]
[1743005701513,7.6e-07,86881.0,86880.0,1.08682799]
[1743005702320,7.6e-07,86881.0,86880.0,1.05112844]
[1743005703010,7.6e-07,86881.0,86880.0,1.04512844]
[1743005703213,7.6e-07,86881.0,86880.0,1.03053169]
[1743005703383,7.6e-07,86881.0,86880.0,1.03653169]
[1743005703617,7.6e-07,86881.0,86880.0,1.04253169]
[1743005704383,7.6e-07,86881.0,86880.0,1.03053169]
[1743005704564,7.6e-07,86881.0,86880.0,1.03653169]
[1743005704770,7.6e-07,86881.0,86880.0,1.04253169]
[1743005704964,0.00033976,86881.0,86880.0,1.03653169]
[1743005706578,0.00033976,86881.0,86880.0,1.04253169]
[1743005707074,0.00033976,86881.0,86880.0,1.64017169]
[1743005707896,0.00033976,86881.0,86880.0,1.50669169]
[1743005708148,0.00033976,86881.0,86880.0,1.64013169]
[1743005709395,0.000339,86890.0,86889.0,0.650886]
[1743005709608,0.000339,86890.0,86889.0,0.89394213]
[1743005710182,0.000339,86890.0,86889.0,0.94318213]
[1743005710393,0.000339,86890.0,86889.0,0.91818213]
[1743005710600,0.000339,86890.0,86889.0,0.94918213]
[1743005710803,0.000339,86890.0,86889.0,0.95518213]
[1743005711832,0.00038012,86890.0,86889.0,0.95518213]
[1743005712033,0.00038012,86890.0,86889.0,1.55278213]
[1743005712446,0.00038012,86890.0,86889.0,1.41934213]
[1743005712650,0.00038012,86890.0,86889.0,1.55278213]
[1743005713149,0.00038012,86890.0,86889.0,1.09434213]
[1743005713331,0.00038012,86890.0,86889.0,1.25131925]
[1743005713725,0.00038012,86890.0,86889.0,1.55631925]
[1743005713949,0.00038012,86890.0,86889.0,1.58131925]
[1743005715211,0.00038012,86890.0,86889.0,1.66011925]
[1743005715412,0.00038012,86890.0,86889.0,1.69583668]
[1743005715557,0.00038012,86890.0,86889.0,1.66011925]
[1743005716165,0.00038012,86890.0,86889.0,1.70584646]
[1743005717339,0.00038012,86890.0,86889.0,1.68084646]
[1743005718518,2.17658451,86880.0,86876.0,0.00851317]
[1743005718695,2.09758303,86880.0,86879.0,0.11425764]
[1743005718902,2.09758303,86880.0,86879.0,0.34446264]
[1743005719097,2.09758303,86880.0,86879.0,0.4936029]
[1743005719890,2.09758303,86880.0,86879.0,0.4996029]
[1743005720092,2.09758303,86880.0,86879.0,0.5056029]
[1743005720543,2.09758303,86880.0,86879.0,0.52014375]
[1743005721273,2.09758303,86880.0,86879.0,0.55597762]
[1743005721671,2.09758303,86880.0,86879.0,0.63237762]
[1743005726444,2.09758303,86880.0,86879.0,0.28303026]
[1743005726646,2.09758303,86880.0,86879.0,0.16877262]
[1743005727076,2.09758303,86880.0,86879.0,0.18331347]
[1743005727601,2.09758303,86880.0,86879.0,0.17731347]
[1743005727952,2.09858303,86880.0,86879.0,0.18231347]
[1743005728235,2.17778303,86880.0,86879.0,0.03437262]
[1743005728444,2.22598303,86880.0,86879.0,0.1444]
[1743005728666,2.79785758,86880.0,86879.0,0.1444]
[1743005728819,2.80936758,86880.0,86879.0,0.011]
[1743005729018,2.92362522,86880.0,86879.0,0.1444]
[1743005729221,2.92362522,86880.0,86879.0,0.1335695]
[1743005729222,2.92262522,86880.0,86879.0,0.1335695]
[1743005729446,0.694515,86879.0,86878.0,0.5976]
[1743005729660,0.91543544,86879.0,86878.0,0.5976]
[1743005729889,0.57174,86870.0,86869.0,0.1336945]
[1743005730217,0.69424,86870.0,86869.0,0.0002945]
[1743005730387,0.81012313,86870.0,86869.0,0.0002945]
[1743005730941,0.82815395,86870.0,86869.0,0.0002945]
[1743005731143,0.82915395,86870.0,86869.0,0.0052945]
[1743005731541,0.88119254,86870.0,86869.0,0.0052945]
[1743005732397,0.82915395,86870.0,86869.0,0.0052945]
[1743005732594,0.82815395,86870.0,86869.0,0.0002945]
[1743005732797,0.81012313,86870.0,86869.0,0.0002945]
[1743005732958,0.81112313,86870.0,86869.0,0.0052945]
[1743005734106,0.81212313,86870.0,86869.0,0.0102945]
[1743005734517,0.81012313,86870.0,86869.0,0.0002945]
[1743005734762,0.81012313,86870.0,86869.0,0.0032945]
[1743005734979,0.46109095,86870.0,86869.0,0.1366945]
[1743005735823,0.4791215,86870.0,86869.0,0.1366945]
[1743005736007,0.4741215,86870.0,86869.0,0.1366945]
[1743005736185,0.47053055,86870.0,86869.0,0.15123535]
[1743005736640,0.47053055,86870.0,86869.0,0.15523535]
[1743005736842,0.47053055,86870.0,86869.0,0.15223535]
[1743005737000,0.47053055,86870.0,86869.0,0.15623535]
[1743005737214,0.47053055,86870.0,86869.0,0.16623535]
[1743005737594,0.46553055,86870.0,86869.0,0.16623535]
[1743005737953,0.4525,86870.0,86869.0,0.16623535]
[1743005739429,0.47052995,86870.0,86869.0,0.16623535]
[1743005740704,0.54175555,86870.0,86869.0,0.1516945]
[1743005741115,0.47052995,86870.0,86869.0,0.1516945]
[1743005742059,0.70075895,86870.0,86869.0,0.1516945]
[1743005742831,0.682729,86870.0,86869.0,0.1516945]
[1743005743030,0.682729,86870.0,86869.0,0.1511945]
[1743005744652,0.69424,86870.0,86869.0,0.0177945]
[1743005744853,0.80153218,86870.0,86869.0,0.1511945]
[1743005745464,0.80153218,86870.0,86869.0,0.1513639]
[1743005746062,0.81956305,86870.0,86869.0,0.1513639]
[1743005746265,0.81956305,86870.0,86869.0,0.0179639]
[1743005748805,0.71227087,86870.0,86869.0,0.1513639]
[1743005749006,0.47053087,86870.0,86869.0,0.1513639]
[1743005751954,0.4525,86870.0,86869.0,0.1513639]
[1743005756555,0.47053008,86870.0,86869.0,0.1513639]
[1743005758178,0.47086888,86870.0,86869.0,0.1513639]
[1743005758616,0.50200067,86870.0,86869.0,0.1513639]
[1743005758972,0.47086888,86870.0,86869.0,0.1513639]
[1743005759707,1.34629913,86860.0,86859.0,0.0003386]
[1743005759931,1.34629913,86860.0,86859.0,0.14827945]
[1743005760524,1.36433009,86860.0,86859.0,0.01487945]
[1743005760723,1.74733009,86860.0,86859.0,0.0003386]
[1743005760924,1.99009709,86860.0,86859.0,0.00542836]
[1743005761235,1.74933009,86860.0,86859.0,0.14382836]
[1743005762431,1.74833009,86860.0,86859.0,0.13882836]
[1743005762638,1.96055413,86860.0,86859.0,0.00542836]
[1743005762847,2.00875413,86860.0,86859.0,0.14078836]
[1743005763060,1.77849913,86860.0,86859.0,0.14078836]
[1743005763260,1.77749913,86860.0,86859.0,0.13378836]
[1743005765757,1.79553031,86860.0,86859.0,0.13378836]
[1743005766284,2.05078531,86860.0,86859.0,0.13378836]
[1743005767620,2.06229731,86860.0,86859.0,0.00042836]
[1743005767823,2.17655495,86860.0,86859.0,0.00042836]
[1743005767973,2.06229731,86860.0,86859.0,0.00042836]
[1743005768364,1.82053031,86860.0,86859.0,0.00042836]
[1743005768571,2.05078531,86860.0,86859.0,0.00042836]
[1743005768761,2.03729731,86860.0,86859.0,0.00042836]
[1743005768994,2.06229731,86860.0,86859.0,0.00042836]
[1743005769581,1.82053031,86860.0,86859.0,0.00042836]
[1743005769786,1.83204231,86860.0,86859.0,0.00042836]
[1743005770140,2.06229731,86860.0,86859.0,0.00042836]
[1743005770706,1.82053031,86860.0,86859.0,0.00042836]
[1743005770916,2.05078531,86860.0,86859.0,0.00042836]
[1743005771129,2.06229731,86860.0,86859.0,0.00042836]
[1743005771941,1.82053031,86860.0,86859.0,0.00042836]
[1743005772165,0.30007164,86859.0,86857.0,0.13336]